bitfinex/quotes_SOLUSD_20250721
["timestamp","ask_amount","ask_price","bid_price","bid_amount"]
[1753077932331,0.66457546,188.09,188.07,26.0]
[1753077932515,38.34,188.1,188.07,26.0]
[1753077932713,38.34,188.1,188.08,0.65]
[1753077932918,0.06,188.13,188.08,0.65]
[1753077933110,38.4,188.13,188.08,0.65]
[1753077933306,38.4,188.13,188.12,4.58031008]
[1753077933614,0.06,188.13,188.12,5.23031008]
[1753077934525,0.06,188.16,188.15,26.0]
[1753077934708,0.06,188.16,188.15,5.23031008]
[1753077936315,0.06,188.16,188.13,26.65]
[1753077936517,0.06,188.16,188.15,30.58031008]
[1753077937025,0.06,188.16,188.11,5.96602769]
[1753077937234,0.06,188.16,188.15,7.45123072]
[1753077938515,1.39432823,188.16,188.12,7.45123072]
[1753077938715,0.06,188.16,188.15,7.45123072]
[1753077939652,0.06,188.16,188.15,8.10123072]
[1753077940829,0.06,188.16,188.15,5.31490831]
[1753077941044,0.06,188.16,188.15,7.45123072]
[1753077941437,0.06,188.16,188.15,8.10123072]
[1753077942531,0.06,188.16,188.15,7.45123072]
[1753077948327,0.06,188.16,188.15,13.45613903]
[1753077949041,0.06,188.16,188.15,13.72439271]
[1753077949749,0.06,188.16,188.15,32.62439271]
[1753077950920,0.06,188.17,188.15,70.90439271]
[1753077951222,0.06,188.17,188.16,8.14123072]
[1753077951825,0.06,188.17,188.16,27.04123072]
[1753077952019,0.06,188.2,188.19,26.0]
[1753077952220,0.06,188.2,188.19,33.71920198]
[1753077952438,0.06,188.2,188.19,33.45123072]
[1753077953756,0.06,188.2,188.19,34.14123072]
[1753077954521,0.06,188.2,188.19,33.45123072]
[1753077955235,0.06,188.2,188.19,26.0]
[1753077955432,0.06,188.2,188.19,7.45123072]
[1753077955433,0.77,188.2,188.19,7.45123072]
[1753077955630,0.77,188.2,188.13,19.59]
[1753077955846,0.66422232,188.19,188.16,7.45123072]
[1753077956026,0.71,188.18,188.16,7.45123072]
[1753077956237,6.02410854,188.18,188.16,7.45123072]
[1753077956932,0.71,188.18,188.16,7.45123072]
[1753077957132,6.02406605,188.18,188.16,4.57269915]
[1753077957339,0.71,188.17,188.16,4.57269915]
[1753077957731,0.71,188.17,188.14,26.0]
[1753077957936,5.31406605,188.18,188.14,30.57269915]
[1753077957937,0.71,188.16,188.14,30.57269915]
[1753077958753,0.71,188.16,188.15,4.57269915]
[1753077959146,6.02462641,188.16,188.09,0.03]
[1753077959474,0.71,188.15,188.11,4.57269915]
[1753077959863,0.71,188.15,188.11,30.57269915]
[1753077960248,0.66439885,188.14,188.1,4.57269915]
[1753077960453,6.02547334,188.13,188.09,4.60269915]
[1753077960639,5.94716863,188.12,188.09,0.03]
[1753077960843,1.37446948,188.12,188.09,0.03]
[1753077961046,4.57269915,188.11,188.09,0.03]
[1753077961279,0.66454013,188.1,188.09,0.03]
[1753077961562,1.37454013,188.1,188.09,0.03]
[1753077962265,5.94723928,188.1,188.09,0.03]
[1753077962667,11.26356038,188.1,188.09,0.03]
[1753077963080,6.69086123,188.1,188.09,0.03]
[1753077963363,0.66450481,188.11,188.09,0.03]
[1753077963537,38.28,188.12,188.09,0.03]
[1753077963945,38.28,188.12,188.1,7.46042468]
[1753077964443,0.66436353,188.15,188.11,7.46042468]
[1753077964675,5.31462585,188.16,188.13,7.46042468]
[1753077964850,7.62529292,188.17,188.14,7.46042468]
[1753077965540,12.93974494,188.17,188.14,7.46042468]
[1753077965870,6.91529292,188.17,188.14,7.46042468]
[1753077966077,38.28,188.18,188.16,7.46042468]
[1753077966279,38.28,188.18,188.17,7.46042468]
[1753077967274,38.99,188.18,188.14,26.0]
[1753077967579,0.71,188.17,188.14,26.0]
[1753077967789,38.28,188.18,188.16,7.46042468]
[1753077968075,38.99,188.18,188.17,7.46042468]
[1753077968642,0.06,188.2,188.17,7.46042468]
[1753077968974,0.06,188.2,188.19,7.46042468]
[1753077969474,0.06,188.2,188.19,15.61084936]
[1753077969662,0.06,188.23,188.22,33.46042468]
[1753077970181,0.06,188.23,188.22,34.15042468]
[1753077970338,0.06,188.23,188.22,0.69]
[1753077970534,0.1,188.24,188.23,31.31264941]
[1753077970783,0.1,188.24,188.23,39.73076306]
[1753077971097,0.06,188.27,188.23,56.51544703]
[1753077971263,0.06,188.27,188.26,7.46042468]
[1753077971456,0.06,188.27,188.26,7.727902]
[1753077971656,0.06,188.27,188.26,8.417902]
[1753077972675,0.06,188.27,188.26,7.46042468]
[1753077972883,0.06,188.27,188.26,12.7722275]
[1753077973054,0.06,188.27,188.26,7.46042468]
[1753077973263,0.06,188.27,188.26,12.7722275]
[1753077973670,0.1,188.35,188.29,26.0]
[1753077973898,0.8,188.35,188.29,26.0]
[1753077974110,0.7,188.33,188.3,7.46042468]
[1753077974387,0.1,188.35,188.3,8.10042468]
[1753077974771,0.1,188.35,188.3,13.41109913]
[1753077975454,0.1,188.35,188.3,12.77109913]
[1753077975656,0.1,188.35,188.3,7.46042468]
[1753077976077,0.1,188.35,188.3,13.41109913]
[1753077977164,0.1,188.35,188.3,5.95067445]
[1753077977490,0.1,188.35,188.3,13.41109913]
[1753077978994,0.1,188.35,188.27,0.26720943]
[1753077979173,0.7,188.34,188.3,7.46042468]
[1753077980181,0.7,188.33,188.3,7.46042468]
[1753077980785,0.1,188.35,188.3,7.46042468]
[1753077981083,0.1,188.35,188.3,13.41109913]
[1753077982020,0.1,188.35,188.3,8.10042468]
[1753077982188,0.76,188.31,188.3,7.46042468]
[1753077982792,0.76,188.31,188.29,7.46042468]
[1753077982987,0.6638343,188.3,188.26,7.46042468]
[1753077983182,7.2352,188.29,188.24,7.46042468]
[1753077983481,1.36390482,188.28,188.24,7.46042468]
[1753077983685,0.66390482,188.28,188.25,7.46042468]
[1753077983893,0.7,188.27,188.25,7.46042468]
[1753077984067,0.7,188.26,188.25,7.46042468]
[1753077984412,0.66390482,188.28,188.25,7.46042468]
[1753077984703,1.36390482,188.28,188.26,7.46042468]
[1753077984914,0.7,188.27,188.26,7.46042468]
[1753077985064,6.5352,188.29,188.26,7.46042468]
[1753077985265,6.5352,188.29,188.22,10.35290513]
[1753077985266,7.2352,188.29,188.28,7.46042468]
[1753077985466,0.06,188.31,188.28,7.46042468]
[1753077985674,0.06,188.31,188.3,7.46042468]
[1753077986374,0.06,188.31,188.3,8.10042468]
[1753077986573,0.06,188.31,188.3,13.67829437]
[1753077987192,0.1,188.35,188.33,26.0]
[1753077987399,0.1,188.39,188.33,26.0]
[1753077987400,0.1,188.39,188.36,26.0]
[1753077987600,0.1,188.39,188.38,7.46042468]
[1753077989395,0.8,188.39,188.38,7.46042468]
[1753077990074,0.1,188.39,188.38,7.46042468]
[1753077990686,0.8,188.39,188.38,7.46042468]
[1753077990889,6.77165454,188.39,188.36,7.46042468]
[1753077991080,0.7,188.38,188.36,7.46042468]
[1753077991268,6.07165454,188.39,188.36,7.46042468]
[1753077991269,0.7,188.37,188.36,7.46042468]
[1753077992385,0.7,188.37,188.36,7.44023046]
[1753077993599,0.7,188.37,188.36,7.46042468]
[1753077994101,0.1,188.39,188.36,7.46042468]
[1753077994413,0.1,188.39,188.34,5.30947093]
[1753077994414,0.8,188.39,188.37,7.46042468]
[1753077994573,0.8,188.39,188.34,5.30947093]
[1753077996010,0.8,188.39,188.33,5.30982849]
[1753077996176,0.1,188.39,188.38,7.46042468]
[1753078002301,0.8,188.39,188.37,7.46042468]
[1753078002488,0.7,188.38,188.37,7.46042468]
[1753078003404,0.1,188.39,188.37,7.46042468]
[1753078003575,0.1,188.39,188.35,31.30923691]
[1753078003777,0.76,188.39,188.35,31.30923691]
[1753078005805,0.1,188.39,188.35,31.30923691]
[1753078005986,0.1,188.39,188.38,7.46042468]
[1753078007904,0.1,188.39,188.38,12.76884383]
[1753078009809,0.1,188.39,188.38,7.46042468]
[1753078010679,0.1,188.39,188.38,12.76884383]
[1753078010880,0.1,188.39,188.38,13.34884383]
[1753078011815,0.06,188.42,188.39,26.0]
[1753078011980,0.06,188.42,188.41,7.46042468]
[1753078012520,0.06,188.42,188.41,26.94042468]
[1753078012888,0.06,188.42,188.41,44.9]
[1753078013112,0.72,188.42,188.41,26.36042468]
[1753078013415,0.72,188.42,188.41,52.36042468]
[1753078013780,0.72,188.42,188.41,44.9]
[1753078013980,0.72,188.42,188.41,52.36042468]
[1753078014211,0.06,188.42,188.41,52.36042468]
[1753078014413,0.06,188.42,188.41,57.66799858]
[1753078015196,0.06,188.42,188.41,31.66799858]
[1753078015390,0.06,188.42,188.41,32.24799858]
[1753078015595,0.06,188.43,188.41,39.70842326]
[1753078015921,0.06,188.46,188.45,26.0]
[1753078016119,0.06,188.46,188.45,33.46042468]
[1753078016434,0.06,188.46,188.45,34.04042468]
[1753078017391,0.06,188.46,188.45,39.34687201]
[1753078018094,0.06,188.5,188.49,26.0]
[1753078018413,0.06,188.5,188.49,33.46042468]
[1753078018714,0.06,188.5,188.47,0.26588517]
[1753078018902,0.06,188.5,188.49,7.46042468]
[1753078019495,0.72,188.5,188.49,7.46042468]
[1753078020015,0.06,188.5,188.49,7.46042468]
[1753078020389,0.72,188.5,188.43,5.30701056]
[1753078020598,0.66316515,188.49,188.46,7.46042468]
[1753078020831,0.72,188.5,188.46,26.0]
[1753078020832,0.66,188.48,188.46,26.0]
[1753078020990,0.66,188.49,188.47,7.46042468]
[1753078021190,0.06,188.5,188.48,7.46042468]
[1753078021407,0.66,188.49,188.46,7.46042468]
[1753078021791,0.72312997,188.5,188.47,7.46042468]
[1753078021997,0.66,188.49,188.47,7.46042468]
[1753078022199,0.66,188.48,188.47,7.46042468]
[1753078023432,0.06,188.5,188.47,7.46042468]
[1753078023616,0.06,188.5,188.49,7.46042468]
[1753078024190,0.06,188.5,188.49,33.46042468]
[1753078025216,0.06,188.5,188.49,7.46042468]
[1753078026215,1.31039846,188.53,188.49,7.46042468]
[1753078026419,0.66302445,188.53,188.51,7.46042468]
[1753078026622,0.66302445,188.53,188.52,7.46042468]
[1753078027096,0.06,188.54,188.52,7.46042468]
[1753078027296,0.06,188.54,188.53,7.46042468]
[1753078027699,0.06,188.54,188.52,7.46042468]
[1753078028202,0.66,188.53,188.52,7.46042468]
[1753078030922,0.06,188.54,188.52,7.46042468]
[1753078031124,0.66,188.53,188.52,7.46042468]
[1753078032922,0.66,188.53,188.48,5.30560271]
[1753078033129,0.66,188.52,188.51,7.46042468]
[1753078033935,0.76,188.54,188.51,7.46042468]
[1753078034104,0.7,188.53,188.51,7.46042468]
[1753078034308,0.06,188.54,188.48,31.30560271]
[1753078034309,0.7,188.52,188.48,26.0]
[1753078034561,0.7,188.52,188.5,7.46042468]
[1753078034837,0.76,188.54,188.51,7.46042468]
[1753078035138,1.42298928,188.54,188.52,7.46042468]
[1753078035345,0.76,188.54,188.52,7.46042468]
[1753078035627,0.76,188.54,188.53,7.46042468]
[1753078035842,0.06,188.54,188.53,7.46042468]
[1753078038435,0.06,188.54,188.52,31.30435169]
[1753078038627,0.06,188.54,188.53,7.46042468]
[1753078039336,0.06,188.54,188.53,12.76462029]
[1753078040016,0.06,188.54,188.53,13.35462029]
[1753078040414,0.06,188.54,188.53,5.89419561]
[1753078040623,0.06,188.54,188.53,7.46042468]
[1753078042339,0.06,188.54,188.53,12.76462029]
[1753078042723,0.06,188.54,188.53,13.35462029]
[1753078042933,0.06,188.54,188.53,12.76462029]
[1753078043528,0.06,188.54,188.53,13.35462029]
[1753078044355,0.06,188.54,188.53,12.76462029]
[1753078044744,0.06,188.54,188.53,17.75462029]
[1753078045831,0.06,188.54,188.53,17.16462029]
[1753078046769,0.76,188.54,188.53,4.4]
[1753078046945,0.76,188.54,188.53,11.86042468]
[1753078047143,0.76,188.54,188.53,8.95453566]
[1753078047859,0.76,188.54,188.53,4.4]
[1753078049458,6.06391428,188.54,188.53,4.4]
[1753078050334,0.76,188.54,188.53,4.4]
[1753078051734,0.76,188.54,188.53,8.95453566]
[1753078051735,0.06,188.54,188.53,8.95453566]
[1753078052734,0.06,188.54,188.53,14.25873127]
[1753078052934,0.06,188.54,188.53,15.11433495]
[1753078054659,0.1,188.56,188.55,26.0]
[1753078054864,0.1,188.56,188.55,35.37450623]
[1753078055164,0.1,188.56,188.55,35.96450623]
[1753078056045,0.1,188.56,188.55,41.26813921]
[1753078056434,0.1,188.56,188.55,58.05282318]
[1753078056638,0.06,188.58,188.56,4.55453566]
[1753078056863,0.06,188.58,188.57,4.81985806]
[1753078057034,0.06,188.58,188.57,42.87985806]
[1753078057240,0.06,188.58,188.57,43.46985806]
[1753078057541,0.7,188.69,188.61,26.0]
[1753078057753,0.7,188.69,188.65,4.55453566]
[1753078057967,0.66242713,188.7,188.65,4.55453566]
[1753078058137,0.7,188.68,188.65,4.55453566]
[1753078058636,0.75706335,188.71,188.67,4.55453566]
[1753078058959,1.36242713,188.7,188.65,4.55453566]
[1753078059267,1.36242713,188.7,188.63,28.71387372]
[1753078059268,0.7,188.69,188.64,7.41312369]
[1753078059444,0.7,188.69,188.59,16.15835097]
[1753078059445,7.41312369,188.66,188.59,15.893619]
[1753078059630,24.02658132,188.68,188.59,15.893619]
[1753078059631,7.41312369,188.64,188.59,15.893619]
[1753078059835,0.66267295,188.63,188.59,15.893619]
[1753078060034,0.7,188.62,188.59,15.893619]
[1753078060259,6.00181146,188.62,188.59,15.893619]
[1753078060434,5.30181146,188.62,188.59,15.893619]
[1753078060635,8.77586691,188.61,188.59,15.893619]
[1753078060853,14.59192369,188.6,188.59,15.893619]
[1753078061575,14.59192369,188.6,188.53,7.41312369]
[1753078061780,14.59192369,188.6,188.54,7.41312369]
[1753078061781,1.36281351,188.59,188.54,7.41312369]
[1753078061972,38.76,188.58,188.54,7.41312369]
[1753078062139,0.7,188.57,188.54,7.41312369]
[1753078062344,38.06,188.58,188.55,7.41312369]
[1753078062345,0.7,188.56,188.55,7.41312369]
[1753078062861,0.7,188.56,188.53,5.30415876]
[1753078063068,0.7,188.56,188.54,7.41312369]
[1753078063254,0.7,188.56,188.55,7.41312369]
[1753078063449,0.7,188.56,188.53,5.30415876]
[1753078063669,0.7,188.56,188.55,7.41312369]
[1753078064190,38.06,188.58,188.55,7.41312369]
[1753078064472,38.73,188.58,188.56,7.41312369]
[1753078065146,38.06,188.58,188.57,7.41312369]
[1753078065860,38.73,188.58,188.57,7.41312369]
[1753078066066,38.06,188.58,188.57,7.41312369]
[1753078067267,38.06,188.58,188.57,12.71619416]
[1753078067780,38.12,188.58,188.57,12.71619416]
[1753078069060,38.12,188.58,188.57,5.30307047]
[1753078069261,38.12,188.58,188.57,12.71619416]
[1753078073681,0.06,188.58,188.57,12.71619416]
[1753078075288,0.06,188.58,188.57,5.30307047]
[1753078075588,0.06,188.58,188.57,12.71619416]
[1753078076785,0.06,188.58,188.56,26.0]
[1753078076993,0.73,188.58,188.57,7.41312369]
[1753078077293,0.67,188.57,188.53,26.0]
[1753078077469,0.06,188.58,188.56,7.41312369]
[1753078077865,0.06,188.58,188.54,5.30375159]
[1753078078090,0.67,188.57,188.56,7.41312369]
[1753078078790,0.67,188.57,188.55,26.0]
[1753078079181,0.67,188.56,188.55,26.0]
[1753078079691,38.02,188.57,188.55,38.71675667]
[1753078079885,38.02,188.57,188.56,7.41312369]
[1753078081290,38.02,188.57,188.56,4.55155093]
[1753078081485,0.06,188.58,188.56,9.85490264]
[1753078081793,0.06,188.58,188.57,4.55155093]
[1753078082110,0.67,188.57,188.53,2.59215007]
[1753078082300,0.67,188.57,188.48,68.14468397]
[1753078082301,38.68291896,188.56,188.48,0.03]
[1753078082466,0.67,188.55,188.51,4.55155093]
[1753078082668,38.69,188.56,188.54,4.55155093]
[1753078083086,5.88450505,188.55,188.52,0.03]
[1753078083286,6.6015,188.52,188.48,0.03]
[1753078083496,43.23464572,188.51,188.48,0.03]
[1753078083677,43.90464572,188.51,188.48,0.03]
[1753078083884,0.67,188.5,188.48,0.03]
[1753078084599,0.66316515,188.49,188.48,0.03]
[1753078085109,1.33316515,188.49,188.48,0.03]
[1753078085286,0.67,188.49,188.48,0.03]
[1753078086702,5.22155093,188.49,188.48,0.03]
[1753078087006,0.67,188.49,188.48,0.03]
[1753078087188,38.68309479,188.51,188.48,0.03]
[1753078087391,38.02,188.51,188.5,4.55155093]
[1753078087986,8.2715,188.56,188.5,4.55155093]
[1753078087987,8.2715,188.56,188.5,31.17155093]
[1753078088189,0.67,188.57,188.55,4.55155093]
[1753078088391,38.02,188.56,188.55,4.55155093]
[1753078088687,38.69,188.56,188.55,4.55155093]
[1753078088902,38.69,188.56,188.51,5.30475836]
[1753078089086,0.67,188.55,188.51,5.30475836]
[1753078089277,38.02,188.56,188.54,7.42066683]
[1753078089483,38.02,188.56,188.55,7.42066683]
[1753078090712,38.02,188.56,188.55,12.72429981]
[1753078091080,0.06,188.58,188.55,12.72429981]
[1753078091281,0.06,188.58,188.57,7.42066683]
[1753078092601,0.06,188.58,188.57,8.04066683]
[1753078092799,0.06,188.58,188.57,13.3437373]
[1753078093214,0.06,188.6,188.59,26.0]
[1753078093515,0.06,188.6,188.59,33.68582052]
[1753078093701,0.06,188.62,188.59,51.09050449]
[1753078093901,1e-08,188.62,188.61,7.42066683]
[1753078094103,0.15706335,188.71,188.64,26.0]
[1753078094297,0.83706335,188.71,188.65,7.42066683]
[1753078094495,1.49945538,188.71,188.65,7.42066683]
[1753078095007,0.83706335,188.71,188.65,13.34148845]
[1753078095215,0.15706335,188.71,188.65,13.60622052]
[1753078095419,0.15706335,188.71,188.65,21.02688735]
[1753078095712,0.15706335,188.71,188.68,26.0]
[1753078095918,0.15706335,188.71,188.7,7.42066683]
[1753078096495,0.15706335,188.71,188.68,26.0]
[1753078096813,0.83706335,188.71,188.69,7.42066683]
[1753078097118,0.83706335,188.71,188.67,38.72092592]
[1753078097312,0.68,188.7,188.69,7.42066683]
[1753078097516,0.15706335,188.71,188.69,7.42066683]
[1753078097692,0.83706335,188.71,188.7,7.42066683]
[1753078097896,0.68,188.7,188.69,7.42066683]
[1753078098092,0.68,188.7,188.68,7.42066683]
[1753078098518,0.68,188.7,188.69,7.42066683]
[1753078100595,0.15706335,188.71,188.69,7.42066683]
[1753078100799,0.15706335,188.71,188.69,12.72030413]
[1753078101099,0.15706335,188.71,188.7,7.42066683]
[1753078102522,0.83706335,188.71,188.67,26.0]
[1753078102721,14.21927497,188.71,188.62,5.30166472]
[1753078102920,0.68,188.7,188.67,7.42066683]
[1753078103131,0.15706335,188.71,188.69,7.42066683]
[1753078103297,0.15706335,188.71,188.7,7.42066683]
[1753078104630,0.15706335,188.71,188.7,12.72008389]
[1753078105806,0.15706335,188.71,188.7,7.42066683]
[1753078106729,0.15706335,188.71,188.7,12.72008389]
[1753078107257,0.15706335,188.71,188.7,5.91941706]
[1753078107548,0.15706335,188.71,188.7,12.72008389]
[1753078108344,0.15706335,188.71,188.7,16.24858028]
[1753078110516,0.15706335,188.71,188.7,15.36419933]
[1753078110722,0.15706335,188.71,188.7,5.29941706]
[1753078111030,0.15706335,188.71,188.7,12.72008389]
[1753078112836,0.15706335,188.71,188.67,18.9]
[1753078113039,0.83706335,188.71,188.7,7.42066683]
[1753078113229,0.15706335,188.71,188.7,7.42066683]
[1753078113646,0.83706335,188.71,188.7,7.42066683]
[1753078114526,0.83706335,188.71,188.69,5.29962468]
[1753078114726,0.83706335,188.71,188.7,7.42066683]
[1753078115049,0.15706335,188.71,188.7,7.42066683]
[1753078115243,0.15706335,188.71,188.7,8.04066683]
[1753078115544,0.15706335,188.71,188.7,7.42066683]
[1753078116050,0.15706335,188.71,188.7,12.72008389]
[1753078116530,0.15706335,188.71,188.7,31.62008389]
[1753078117054,0.83706335,188.71,188.7,18.9]
[1753078117253,0.83706335,188.71,188.7,26.32066683]
[1753078117759,0.15706335,188.71,188.7,26.32066683]
[1753078118056,0.83706335,188.71,188.7,18.9]
[1753078118840,0.83706335,188.71,188.7,26.32066683]
[1753078121838,0.83706335,188.71,188.7,18.9]
[1753078122449,0.83706335,188.71,188.69,26.32066683]
[1753078122826,0.83706335,188.71,188.69,31.62029606]
[1753078123331,0.15706335,188.71,188.69,24.19962923]
[1753078123540,0.15706335,188.71,188.7,7.42066683]
[1753078123942,0.15706335,188.71,188.7,12.72008389]
[1753078125131,0.15706335,188.71,188.7,9.84356499]
[1753078125929,0.15706335,188.71,188.7,10.46356499]
[1753078126351,0.15706335,188.71,188.7,9.84356499]
[1753078126852,0.86706335,188.71,188.68,4.54414793]
[1753078127432,0.86706335,188.71,188.66,5.3003194]
[1753078127433,0.71,188.7,188.66,5.3003194]
[1753078127633,0.71,188.7,188.68,4.54414793]
[1753078128156,0.71,188.7,188.65,5.33082162]
[1753078128355,0.71,188.7,188.68,4.54414793]
[1753078129224,0.71,188.7,188.65,21.26460958]
[1753078129541,0.71,188.7,188.68,7.40977561]
[1753078129930,0.71,188.7,188.68,12.70970119]
[1753078130558,0.71,188.69,188.68,12.70970119]
[1753078131430,0.71,188.69,188.65,2.7117339]
[1753078131647,0.71,188.68,188.67,7.40977561]
[1753078131947,0.71,188.68,188.66,12.71031014]
[1753078132243,0.71,188.67,188.66,12.71031014]
[1753078132636,0.71,188.67,188.66,12.74031014]
[1753078133250,0.81945538,188.71,188.66,12.74031014]
[1753078133442,0.71,188.69,188.66,12.74031014]
[1753078133645,0.81945538,188.71,188.66,12.74031014]
[1753078133952,0.71,188.7,188.66,12.74031014]
[1753078134127,0.81945538,188.71,188.67,7.40977561]
[1753078134330,0.71,188.69,188.67,7.40977561]
[1753078134532,0.15706335,188.71,188.66,18.93]
[1753078134533,0.71,188.68,188.66,18.93]
[1753078134839,0.71,188.67,188.66,18.93]
[1753078135863,0.71,188.67,188.66,23.33]
[1753078138353,0.71,188.67,188.66,4.43]
[1753078138561,10.26547561,188.67,188.66,0.03]
[1753078138934,15.56573532,188.67,188.66,0.03]
[1753078139644,16.22826778,188.67,188.66,0.03]
[1753078140058,8.81849217,188.67,188.66,0.03]
[1753078140266,16.22826778,188.67,188.66,0.03]
[1753078140564,33.01295175,188.67,188.66,0.03]
[1753078142361,0.71,188.62,188.59,7.40977561]
[1753078143362,0.71,188.62,188.58,9.70274725]
[1753078143738,7.40977561,188.59,188.58,4.4]
[1753078143938,8.11977561,188.59,188.58,4.4]
[1753078144158,8.11977561,188.59,188.57,0.03]
[1753078144461,46.72262426,188.58,188.57,0.03]
[1753078145165,58.15473262,188.58,188.57,0.03]
[1753078145366,65.56450823,188.58,188.57,0.03]
[1753078146365,70.86729749,188.58,188.57,0.03]
[1753078146775,84.12427065,188.58,188.48,0.03]
[1753078146976,7.40977561,188.52,188.48,0.03]
[1753078147146,0.71,188.57,188.51,7.40977561]
[1753078147353,44.7215,188.61,188.56,7.40977561]
[1753078147665,44.7215,188.61,188.6,7.40977561]
[1753078147865,38.65,188.61,188.6,7.40977561]
[1753078148167,37.94,188.61,188.6,7.40977561]
[1753078148470,43.95198137,188.61,188.51,5.92475836]
[1753078148764,0.71,188.6,188.57,7.40977561]
[1753078149171,0.71,188.6,188.58,7.40977561]
[1753078149556,0.71,188.6,188.57,7.40977561]
[1753078149753,38.60274322,188.61,188.57,7.40977561]
[1753078150069,0.71,188.59,188.58,7.40977561]
[1753078150567,38.60274322,188.61,188.58,7.40977561]
[1753078150764,39.31274322,188.61,188.59,7.40977561]
[1753078150939,38.65,188.61,188.59,7.40977561]
[1753078151144,38.65,188.61,188.56,5.30328487]
[1753078151560,38.65,188.61,188.56,5.92328487]
[1753078152450,38.65,188.61,188.58,7.40977561]
[1753078152451,37.94,188.61,188.58,7.40977561]
[1753078152656,0.71,188.6,188.58,7.40977561]
[1753078153065,0.71,188.59,188.58,7.40977561]
[1753078153460,0.71,188.59,188.57,11.80977561]
[1753078153644,37.94,188.61,188.57,11.80977561]
[1753078153850,0.6626027,188.65,188.6,7.40977561]
[1753078154151,37.94,188.64,188.62,7.40977561]
[1753078154693,0.66,188.63,188.61,7.40977561]
[1753078154844,37.94,188.64,188.58,26.0]
[1753078154845,0.66,188.62,188.6,7.40977561]
[1753078155047,37.94,188.64,188.6,7.40977561]
[1753078155255,37.94,188.64,188.61,7.40977561]
[1753078155449,0.66,188.63,188.61,7.40977561]
[1753078155675,0.66,188.62,188.6,7.40977561]
[1753078156372,37.94,188.64,188.61,3.40977561]
[1753078156678,37.94,188.64,188.63,7.40977561]
[1753078157184,37.94,188.64,188.62,7.40977561]
[1753078157374,37.94,188.64,188.61,7.40977561]
[1753078157552,0.66,188.63,188.59,7.43977561]
[1753078157758,0.66,188.62,188.59,7.43977561]
[1753078158151,0.66,188.62,188.6,7.40977561]
[1753078158647,37.94,188.64,188.6,7.40977561]
[1753078158852,0.66,188.62,188.59,7.43977561]
[1753078159050,38.60263782,188.64,188.61,7.40977561]
[1753078159362,39.26263782,188.64,188.61,7.40977561]
[1753078159969,0.66,188.63,188.61,7.40977561]
[1753078161179,0.66,188.63,188.6,5.30219446]
[1753078161180,0.66,188.63,188.6,9.85285955]
[1753078162985,0.66,188.63,188.61,4.55066509]
[1753078164569,38.60263782,188.64,188.61,4.55066509]
[1753078164764,38.6,188.64,188.61,4.55066509]
[1753078164977,1.32267295,188.63,188.59,24.22538378]
[1753078165178,1.32267295,188.63,188.6,4.55066509]
[1753078165179,0.66267295,188.63,188.6,4.55066509]
[1753078165376,0.66,188.62,188.6,4.55066509]
[1753078165575,0.66,188.62,188.61,4.55066509]
[1753078165767,0.66267295,188.63,188.61,4.55066509]
[1753078165973,0.66267295,188.63,188.6,4.55066509]
[1753078166178,1.32267295,188.63,188.61,4.55066509]
[1753078166490,38.60263782,188.64,188.62,4.55066509]
[1753078166790,39.26263782,188.64,188.62,4.55066509]
[1753078167293,0.66,188.63,188.61,4.55066509]
[1753078168483,0.66,188.62,188.59,23.47361139]
[1753078168794,37.92,188.61,188.59,18.9229463]
[1753078168972,37.92,188.61,188.6,4.55066509]
[1753078169386,38.58,188.61,188.59,4.58066509]
[1753078169988,37.92,188.61,188.6,9.85289202]
[1753078170191,37.92,188.61,188.6,4.55066509]
[1753078171091,37.92,188.61,188.6,9.85289202]